Cogmind - Beta 16 @@@ ROGUE MODE // 2025.10.23 @ 19:41:37 Player: JohnnyDongs Result: Destroyed by YI-UF0 with YI-UF0's Doublenader Performance ------------- Evolutions (0) 0 Regions Visited (4) 800 Robots Destroyed (39) 195 Value Destroyed (643) 643 Prototype IDs (0) 0 Alien Tech Used (0) 0 Bonus (25) 25 TOTAL SCORE: 1663 Bonus ------- Follower Combat Kills 25 Cogmind --------- Core Integrity 0/250 Matter 247/300 Energy 24/100 System Corruption 2% Temperature Cool (0) Movement Rolling (140) Ox4 Location -9/Mines Parts ------- > --- POWER (1) -------- (None) > --- PROPULSION (2) --- Wheel > --- UTILITY (2) ------ Improved Heat Sink High-capacity Storage Unit > --- WEAPON (2) ------- Beam Rifle Beam Rifle > --- INVENTORY (20) --- Light Ion Engine Wheel Heat Sink Seismic Detector Improved Light Armor Plating Assault Rifle Heavy Assault Rifle Grenade Launcher Peak State ------------ > --- POWER ------------ Light Deuterium Engine > --- PROPULSION ------- Wheel Wheel > --- UTILITY ---------- High-capacity Storage Unit Improved Light Armor Plating > --- WEAPON ----------- Beam Rifle Heavy Assault Rifle > --- INVENTORY -------- Light Ion Engine Light Ion Engine Wheel Heat Sink Improved Heat Sink Seismic Detector Beam Rifle Assault Rifle Grenade Launcher [Rating: 14] Favorites ----------- Power Light Ion Engine Engine Light Ion Engine Propulsion Compact Wheel Wheel Compact Wheel Utility High-capacity Storage Unit Device Sensor Array Storage High-capacity Storage Unit Processor Signal Interpreter Protection Light Armor Plating Weapon Assault Rifle Energy Gun Beam Rifle Energy Cannon Beam Cannon Ballistic Gun Assault Rifle Launcher Grenade Launcher Special Weapon Mining Laser Build | -11 -10 -10 -10 -9 ------- Run | Yrd Mat Min Exi Min Slots Evolved . | . . . . . Power . | . . . . . Propulsion . | . . . . . Utility . | . . . . . Weapon . | . . . . . Parts Attached 30 | 8 7 5 . 10 Power 7 | 1 1 3 . 2 Engine 7 | 1 1 3 . 2 Core . | . . . . . Reactor . | . . . . . Propulsion 7 | 4 1 . . 2 Treads . | . . . . . Leg . | . . . . . Wheel 7 | 4 1 . . 2 Hover . | . . . . . Flight . | . . . . . Utility 7 | 1 3 1 . 2 Device 3 | 1 1 . . 1 Storage 1 | . 1 . . . Processor 1 | . 1 . . . Hackware . | . . . . . Protection 2 | . . 1 . 1 Artifact . | . . . . . Weapon 9 | 2 2 1 . 4 Energy Gun 2 | . . . . 2 Energy Cannon 1 | . 1 . . . Ballistic Gun 3 | 1 . 1 . 1 Ballistic Cannon . | . . . . . Launcher 2 | . 1 . . 1 Special Weapon 1 | 1 . . . . Impact Weapon . | . . . . . Slashing Weapon . | . . . . . Piercing Weapon . | . . . . . Special Melee Weapon . | . . . . . Unidentified Prototypes . | . . . . . Parts Lost 14 | . 3 3 . 8 Power 4 | . . 1 . 3 Propulsion 5 | . 1 1 . 3 Utility 1 | . . . . 1 Weapon 4 | . 2 1 . 1 Highest Loss Streak 4 | . 2 3 . 4 To Critical Strikes . | . . . . . Average Backups 5 | . 4 5 9 9 Power . | . . . 1 1 Propulsion 1 | . 1 1 2 1 Utility 1 | . 1 1 2 2 Weapon 2 | . 1 1 4 3 Tool/Special . | . . . . . Unused Backups 2 | . . . . 2 Power . | . . . . . Propulsion 1 | . . . . 1 Utility 1 | . . . . 1 Weapon . | . . . . . Tool/Special . | . . . . . Average Slot Usage (%) 98 | . 98 97 100 95 Engine 13 | . 14 13 14 13 Wheel 27 | . 27 27 28 27 Device 5 | . 11 . . . Storage 9 | . 2 14 14 14 Processor 5 | . 12 . . . Protection 7 | . . 13 14 12 Energy Cannon 5 | . 11 . . . Ballistic Gun 15 | . 1 26 28 26 Launcher 1 | . 1 . . 1 Special Weapon 5 | . 12 . . . Peak Build Rating 14 | 6 7 9 9 14 Average Rating 7 | 4 6 7 9 10 On Entrance 6 | . 6 7 9 9 Avg Prop Armor Cover (%) . | . . . . . Naked Turns . | . . . . . Heaviest Build 55 | 7 50 54 54 55 Greatest Support 32 | 32 32 26 26 26 Greatest Overweight (x) 2 | . 1 2 2 2 Average Overweight (x) . | . . 1 2 2 Largest Inventory Capacity 20 | 5 20 20 20 20 Average Capacity 14 | 5 8 20 20 20 Most Carried 10 | 2 6 9 9 10 Average Carried 5 | . 4 5 9 9 Final Capacity 20 | 5 20 20 20 20 Final Carried 9 | 2 5 9 9 8 Class Distribution -------------------- 61% | Mutant 38% | Scavenger-Mutant Dominant Class ---------------- Scavenger-Mutant | -10/Materials Mutant | -10/Mines Mutant | -10/Exiles Scavenger-Mutant | -9/Mines Resources | -11 -10 -10 -10 -9 ----------- Run | Yrd Mat Min Exi Min Matter Collected 938 | 215 238 174 . 311 Remotely . | . . . . . Salvage Created 837 | 119 472 79 . 167 Parts 72 | 8 45 9 . 10 Haulers Intercepted 1 | . 1 . . . Recyclers Shooed . | . . . . . Parts Field Recycled . | . . . . . Retrieved Matter . | . . . . . Parts Self-Destructed . | . . . . . Prevented . | . . . . . Parts Restored . | . . . . . Kills | -11 -10 -10 -10 -9 ------- Run | Yrd Mat Min Exi Min Combat Hostiles Destroyed 38 | . 16 6 . 16 Guns 5 | . 1 1 . 3 Cannons 5 | . 5 . . . AOE 28 | . 10 5 . 13 Classes Destroyed 10 | 2 6 . . 2 Worker 5 | . 4 1 . . Builder 1 | . 1 . . . Tunneler 4 | 2 . 2 . . Hauler 1 | . 1 . . . Recycler 1 | 1 . . . . Watcher 2 | . 2 . . . Swarmer 15 | . 9 6 . . Grunt 9 | . 7 . . 2 Demolisher 1 | . . . . 1 Assembled 13 | . . . . 13 Best Kill Streak 13 | 2 9 6 . 13 Combat Bots Only 13 | . 5 6 . 13 Max Kills in Single Turn 3 | 1 3 2 . 3 Gunslinging . | . . . . . Exploded 3 | . 2 2 . 3 Melee . | . . . . . Uniques/NPCs Destroyed . | . . . . . Combat | -11 -10 -10 -10 -9 -------- Run | Yrd Mat Min Exi Min Hostile Shots Fired 124 | . 44 23 . 57 Missed 33 | . 15 3 . 15 Hits 91 | . 29 20 . 42 Melee 1 | . . . . 1 Projectile 90 | . 29 20 . 41 AOE 15 | . . . . 15 Damage Taken 1392 | . 328 183 . 881 Core 252 | . 49 16 . 187 Absorbed by Shields . | . . . . . Core Remaining (%) 100 | 100 . . . . Volleys Fired 132 | 14 75 14 . 29 Largest 2 | 2 1 2 . 2 Hottest 120 | 120 100 40 . 112 Shots Fired 159 | 15 75 20 1 48 Gun 83 | 14 15 14 1 39 Cannon 44 | . 44 . . . Launcher 24 | . 9 6 . 9 Special 8 | 1 7 . . . Kinetic 77 | 14 15 14 1 33 Thermal 58 | 1 51 . . 6 Explosive 24 | . 9 6 . 9 Electromagnetic . | . . . . . Robot Hit Streak 10 | 2 8 2 . 10 Robot Miss Streak 5 | 3 5 3 . 3 Penetration Max . | . . . . . Secondary Targets 1 | . . . . 1 Max Gunslinging Chain 1 | . . . . 1 Shots Hit Robots 88 | 7 37 9 . 35 Core Hits 92 | 4 29 10 . 49 Critical Kills . | . . . . . Critical Parts Destroyed 1 | . . 1 . . Critical Strikes 1 | . . 1 . . Destroy 1 | . . 1 . . Melee Attacks . | . . . . . Impact . | . . . . . Slashing . | . . . . . Piercing . | . . . . . Sneak Attacks . | . . . . . Combat Hostiles . | . . . . . Follow-up Attacks . | . . . . . Damage Inflicted 3076 | 92 1209 502 . 1273 Guns 790 | 92 166 82 . 450 Cannons 444 | . 444 . . . Explosions 1837 | . 595 419 . 823 Melee . | . . . . . Ramming 5 | . 4 1 . . Kinetic 718 | 92 166 82 . 378 Thermal 516 | . 444 . . 72 Explosive 1779 | . 537 419 . 823 Electromagnetic 58 | . 58 . . . Impact . | . . . . . Slashing . | . . . . . Piercing . | . . . . . Highest Corruption 2 | . . 2 2 2 Average Corruption 2 | . . 2 2 2 Corruption Purged . | . . . . . Corruption Blocked . | . . . . . Effects 12 | . . 3 4 5 Message Errors 1 | . . 1 . . Matter Fused 4 | . . 1 . 3 Energy Discharges 1 | . . . 1 . Data Loss (minor) 4 | . . 1 2 1 Misfires 1 | . . . 1 . Weapon Failures 1 | . . . . 1 Overload Shots . | . . . . . Overflow Damage 65 | . 25 34 . 6 Projectiles 5 | . 5 . . . Explosions 60 | . 20 34 . 6 Melee . | . . . . . Knockbacks . | . . . . . Impact . | . . . . . Kinetic . | . . . . . Secondary . | . . . . . Self-Inflicted Damage 71 | . 56 15 . . Shots 4 | . 2 2 . . Rammed 3 | . 2 1 . . Targets Rammed 3 | . 2 1 . . Kicked . | . . . . . Crushed . | . . . . . Highest Temperature 350 | 20 350 . . 60 Average Temperature 95 | 12 109 . . 38 Received Heat Transfer 219 | . 78 9 . 132 Effects 1 | . 1 . . . Interference 1 | . 1 . . . Siege Activations . | . . . . . Martial Activations . | . . . . . Shielding Activations . | . . . . . Robots Disrupted . | . . . . . Combat Hostiles . | . . . . . Robots Corrupted . | . . . . . Combat Hostiles . | . . . . . Parts Fried . | . . . . . Impact Corruptions . | . . . . . Robots Melted . | . . . . . Combat Hostiles . | . . . . . Parts Melted 2 | . 2 . . . Heat Transferred 1110 | . 925 . . 185 Parts Sabotaged . | . . . . . Parts Stolen . | . . . . . Parts Stripped . | . . . . . Power Chain Reactions . | . . . . . Alert | -11 -10 -10 -10 -9 ------- Run | Yrd Mat Min Exi Min Maximum Alert Level 1 | . 1 1 . . Low Security (%) 79 | 100 74 72 . 100 Level 1 20 | . 25 27 . . Level 2 . | . . . . . Level 3 . | . . . . . Level 4 . | . . . . . Level 5 . | . . . . . High Security . | . . . . . Max Security . | . . . . . Peak Influence 300 | 5 300 248 . 51 Initial 110 | . . 110 . . Average 91 | 1 93 158 . 12 Influence Increases 877 | 15 556 183 . 123 Destroy 0b10 Robot/C 520 | . 320 120 . 80 Destroy 0b10 Robot/NC 70 | 15 40 15 . . Destroy Leader 96 | . 66 20 . 10 Allied During Kill 14 | . . . . 14 Successful Hack 15 | . 15 . . . Select Force Hacks 30 | . 30 . . . Disable Machine 45 | . 45 . . . Destroy Structure 87 | . 40 28 . 19 Influence Decreases 877 | 15 272 402 65 123 Entered New Map 239 | . . 174 65 . Time Decay 535 | 15 242 198 . 80 Lost Part 90 | . 30 30 . 30 Lost Ally 13 | . . . . 13 Squads Dispatched 2 | . 2 . . . Investigation 2 | . 2 . . . Extermination . | . . . . . Reinforcement . | . . . . . Assault . | . . . . . Garrison . | . . . . . Intercept . | . . . . . Searches Triggered . | . . . . . Construction Impeded . | . . . . . Haulers Reinforced . | . . . . . Active Scanning Responses . | . . . . . Cargo Convoy Interrupts . | . . . . . Stealth | -11 -10 -10 -10 -9 --------- Run | Yrd Mat Min Exi Min Distress Signals 2 | . 2 . . . Communications Jammed . | . . . . . Distress Signals . | . . . . . Times Spotted 54 | . 21 7 . 26 Peak Tracking Total 17 | . 4 5 . 17 Tactical Retreats . | . . . . . Traps | -11 -10 -10 -10 -9 ------- Run | Yrd Mat Min Exi Min Traps Triggered . | . . . . . Indirectly . | . . . . . Trap Hack Attempts . | . . . . . Triggered . | . . . . . Disarmed . | . . . . . Reprogrammed . | . . . . . Reused . | . . . . . Traps Extracted . | . . . . . Installed . | . . . . . Triggered . | . . . . . Machines | -11 -10 -10 -10 -9 ---------- Run | Yrd Mat Min Exi Min Machines Disabled 3 | . 3 . . . Max in Single Turn 2 | . 2 . . . Machines Repaired . | . . . . . Machines Dismantled . | . . . . . Machines Sabotaged . | . . . . . Overloaded Fab Kills . | . . . . . Hacking | -11 -10 -10 -10 -9 --------- Run | Yrd Mat Min Exi Min Machines Accessed 7 | . 6 . 1 . Terminals 4 | . 4 . . . Fabricators . | . . . . . Repair Stations 1 | . 1 . . . Recycling Units 1 | . 1 . . . Scanalyzers . | . . . . . Garrison Access . | . . . . . Total Hacks 16 | . 15 . 1 . Successful 8 | . 7 . 1 . Failed 7 | . 7 . . . Catastrophic 1 | . 1 . . . Database Lockouts 1 | . 1 . . . Manual 22 | . 12 . 10 . Terminals 12 | . 12 . . . Fabricators . | . . . . . Repair Stations 1 | . 1 . . . Recycling Units 2 | . 2 . . . Scanalyzers . | . . . . . Garrison Access . | . . . . . Terminal Hacks 5 | . 4 . 1 . Record 1 | . . . 1 . Robot Analysis 2 | . 2 . . . Terminal Index 1 | . 1 . . . Locate Traps 1 | . 1 . . . Fabricator Hacks . | . . . . . Repair Station Hacks . | . . . . . Recycling Unit Hacks 1 | . 1 . . . Report Inventory 1 | . 1 . . . Scanalyzer . | . . . . . Garrison Access Hacks . | . . . . . Unauthorized Hacks 2 | . 2 . . . Terminals . | . . . . . Fabricators . | . . . . . Repair Stations 1 | . 1 . . . Mechanics 1 | . 1 . . . Recycling Units 1 | . 1 . . . Tunnel 1 | . 1 . . . Scanalyzers . | . . . . . Garrison Access . | . . . . . Data Cores Recovered . | . . . . . Used . | . . . . . Hacking Detections 5 | . 5 . . . Full Trace Events 3 | . 3 . . . Feedback Events . | . . . . . Feedback Blocked . | . . . . . Robot Schematics Acquired . | . . . . . Robots Built . | . . . . . Authchips . | . . . . . Time . | . . . . . Total Robot Build Rating . | . . . . . Part Schematics Acquired . | . . . . . Parts Built . | . . . . . Authchips . | . . . . . Time . | . . . . . Total Part Build Rating . | . . . . . Part Studies Acquired . | . . . . . Parts Repaired . | . . . . . Time . | . . . . . Parts Recycled . | . . . . . Recycled Matter . | . . . . . Retrieved Matter . | . . . . . Retrieved Components . | . . . . . Parts Scanalyzed . | . . . . . Part Schematics Acquired . | . . . . . Parts Damaged . | . . . . . Bothacking | -11 -10 -10 -10 -9 ------------ Run | Yrd Mat Min Exi Min Used RIF Installer . | . . . . . Robots Hacked . | . . . . . Non-combat . | . . . . . Combat . | . . . . . Robot Hacks Applied . | . . . . . Relay Couplers Released . | . . . . . Fabnet Peak Effective % . | . . . . . Robots Rewired . | . . . . . Allies Hacked . | . . . . . Hacks Repelled . | . . . . . Allies | -11 -10 -10 -10 -9 -------- Run | Yrd Mat Min Exi Min Total Allies 3 | . . 3 . . Largest Group 3 | . . 3 3 3 Highest-Rated Group 40 | . . 40 40 40 Highest-Rated Ally 16 | . . 16 16 16 Total Orders . | . . . . . Ally Attacks 40 | . . . . 40 Total Damage 406 | . . . . 406 Kills 8 | . . . . 8 Allies Corrupted . | . . . . . Allies Melted . | . . . . . Intel | -11 -10 -10 -10 -9 ------- Run | Yrd Mat Min Exi Min Active Infowar (turns) 604 | 8 596 . . . Sensors 552 | . 552 . . . Seismic 68 | 8 60 . . . Robot Analysis Total 2 | . 2 . . . Derelict Logs Recovered 1 | . . 1 . . Drone Launches . | . . . . . Drone Recoveries . | . . . . . Exploration | -11 -10 -10 -10 -9 ------------- Run | Yrd Mat Min Exi Min Turns Passed 1798 | 81 773 410 263 271 Spaces Moved 1312 | 42 587 309 215 159 Core 1 | 1 . . . . Treads . | . . . . . Legs . | . . . . . Wheels 1311 | 41 587 309 215 159 Hover . | . . . . . Flight . | . . . . . Fastest Speed 50 | 50 90 105 120 110 Average Speed 105 | 84 98 107 120 110 Slowest Speed 130 | 100 105 130 120 120 Overloaded Moves . | . . . . . Propulsion Burnouts . | . . . . . Robots Hopped . | . . . . . Potential Cave-ins . | . . . . . Cave-ins Triggered . | . . . . . Exploration Rate (%) 52 | 3 80 62 60 56 Regions Visited 4 Branch Regions 3 Pre-discovered Areas 1 | . 1 . . . Known Exits Taken 1 | . 1 . . . Unknown Exits Taken 3 | 1 . 1 1 . Scrap Searched 1 | . . 1 . . Spaces Dug . | . . . . . Terrain Destroyed 116 | 1 37 41 . 37 Melee . | . . . . . Projectile 1 | 1 . . . . AOE 115 | . 37 41 . 37 Terrain Rammed . | . . . . . Walls Destroyed . | . . . . . Machines Disabled . | . . . . . Actions | -11 -10 -10 -10 -9 --------- Run | Yrd Mat Min Exi Min Total 1546 | 67 691 364 220 204 Wait 45 | . 8 28 6 3 Move 1308 | 41 586 308 214 159 Hop . | . . . . . Pick Up 15 | 2 4 6 . 3 Fast Attach 15 | 8 4 1 . 2 Attach 9 | . 3 2 . 4 Detach 2 | . 2 . . . Swap 12 | . 5 3 . 4 Drop 5 | 2 2 1 . . Fire 132 | 14 75 14 . 29 Melee . | . . . . . Ram 3 | . 2 1 . . Kick . | . . . . . Crush . | . . . . . Escape Stasis . | . . . . . Rewire . | . . . . . Trap . | . . . . . Miscellaneous . | . . . . . Route ------- -11/Scrapyard -10/Materials (discovered 4 exits: *Mat x2 / *Min / *Sub) -10/Mines (discovered 3 exits: *Mat / *Exi / *Sub) -10/Exiles -9/Mines History --------- Turn | Location | Event 18 | -11/Scrapyard | Discovered new exit (range 13) 82 | -11/Scrapyard | Entered Materials 397 | -10/Materials | Discovered new exit (range 7) 411 | -10/Materials | Identified exit to Materials 545 | -10/Materials | Discovered new exit (range 3) 549 | -10/Materials | Identified exit to Subcaves 708 | -10/Materials | Discovered exit to Materials (range 11) 797 | -10/Materials | Discovered new exit (range 16) 815 | -10/Materials | Central database locked down 854 | -10/Materials | Identified exit to Mines 855 | -10/Materials | Entered Mines 900 | -10/Mines | Lost 3 parts (1p1n1w) 1054 | -10/Mines | Discovered exit to Subcaves (range 4) 1082 | -10/Mines | Build established: Mutant 1115 | -10/Mines | Learned Materials terminal intel 1147 | -10/Mines | Assisted by bots powering up and referring to "LRC-V3" 1174 | -10/Mines | Discovered exit to Materials (range 7) 1188 | -10/Mines | Joined a pair of Derelicts in attacking an 0b10 outpost 1260 | -10/Mines | Deemed a non-threat by the Exiles lab entrance 1260 | -10/Mines | Discovered new exit (range 5) 1265 | -10/Mines | Entered Exiles 1265 | -10/Exiles | Found Exiles lab abandoned 1265 | -10/Exiles | Accompanied by 3 allies 1511 | -10/Exiles | Discovered new exit (range 10) 1528 | -10/Exiles | Entered Mines 1528 | -9/Mines | Accompanied by 3 allies 1626 | -9/Mines | Assembled infested the area 1667 | -9/Mines | Destroyed 13 combat bots 1671 | -9/Mines | Core integrity fell below 50% 1727 | -9/Mines | Lost 3 allies 1792 | -9/Mines | Core integrity fell below 20% 1799 | -9/Mines | Destroyed by YI-UF0 with YI-UF0's Doublenader Last Messages --------------- 01696_ Trooper 1b destroyed. 01697_ The unstable cave ceiling collapses. 01698_ Destroyed Lgt. Deuterium Engine. 01698_ D-53 Grenadier destroyed. 01699_ The unstable cave ceiling collapses. 01701_ Acquired 12 matter. 01702_ The unstable cave ceiling collapses. 01708_ Acquired Lgt. Deuterium Engine. 01716_ The unstable cave ceiling collapses. 01743_ System corrupted: Component data lost. 01785_ System corrupted: Matter fused (-8). 01786_ Acquired 2 matter. 01787_ Assault Rifle destroyed. 01789_ Lgt. Deuterium Engine destroyed. 01791_ T-07 Excavator destroyed. 01793_ Lgt. Ion Engine destroyed. 01794_ The unstable cave ceiling collapses. 01795_ Destroyed Shock Absorption System. 01796_ The unstable cave ceiling collapses. 01799_ Wheel destroyed. Map ----- +----------------------------------------------------+ | ???????????????????????????????????????####??## | | ??????????????????????????????????????## #### | | ??????????????????????????????????????# | | ??????????????????????????????????????# | | ??????????????????????????????????????# ### | | ??????????????????????????????????????# ##?# # | | ??????????????????????????????????????## ##??# # | | ???????????????????????????????????????######## # | | ???????????????????????????????????????????# # | | ???????????????????????????????????????????# # | | ???????????????????????????????????????????# #### | | ???????????????????????????????????????????# #??? | | ???????????????????????????????? ?????????# #??? | | ??????????????????????????????? ??????## #??? | | ?????????????????????????????## ?????## ##?? | | ???????????????????????#####? #????## ##? | | ???????????????????????# ## ?????# ## | | ???????????????????????# #????## # | | ???????????????????????# = #?????# | | ??????????????????????## #????# ## | | ??????????????????????# ##???# #?## | | ????????????????????### # #???# #???# | | ?????????????????#### ?????## #????# | | ?????????????##### #???????###?????# | | ???????????" # ###????????????# | | ???????????" % @ #??????????# | | ???????????" g * ####???????## | | ?????????????### #????????### | | ???????????????## #??????????# | | ????????????????# #### #??????????? | | ?????????????? ## #??# #????######? | | ????????????? #?### ##?## ##?### # ## | | ???????????? #?????# ### ### ## # | | ????????????? #####????# ## # | | ????????????? ####?## ##???# # | | ????????????????????# #???## # = = | | ????????????????????# ##??## ##### # | | ???????????????????## #### ##???# # # # # | | ??????????????????## ## ##????# # # | | ?????????????????## ##?????# ####### | | ?????????????????# ##??????### #?????? | | ?????????????????##### ##?????????# #?????? | | ?????????????????????## ## #??????????# #?????? | | ??????????????????????### ## #????####### ####### | | ????????????????????????# ## #????# | | ????????????????????????# ##???# | | ????????????????????????#### #???# | | ???????????????????????????### #???# """ """ """ | | ?????????????????????????????# ##### """ """ """ | | ?????????????????????????????# """ """ """ | +----------------------------------------------------+ Best States ------------- Heat Dissipation 25 Energy Generation 14 Energy Capacity 265 Matter Stores 300 Matter Capacity 300 Sight Range 16 Robot Scan Range 14 Terrain Scan Density 10 Armor Coverage 150 Evasion (%) 44 Item Schematics ----------------- None Robot Schematics ------------------ None Fabricated ------------ Nothing Repaired ---------- Nothing Studied --------- None Alien Tech Used ----------------- None Achievements -------------- None Challenges ------------ None Game ------ Seed MomentumTargetRedirector Manual? 0 Play Time 00:25:30 Cumulative 75.4 hours Start 2025.10.23 @ 19:13:55 End 2025.10.23 @ 19:41:37 Sessions 1 Manual Loads 0 Difficulty Rogue Special Mode None Game No. 51 Rogue 51 Adventurer 0 Explorer 0 Win Type - Total 0 Types 0/0/0/0/0/0/0/0/0/0 Lore% 31 Gallery% 43 Achievement% 23 Wizard Run 0 Options --------- Layout 1 ASCII 0 Keyboard 0 Movement Numpad Keybinds 0 Fullscreen 1 Font 24/Smallcaps Map View 50x35 Zoom Use 0% Tactical HUD 1 Map Filters NONE Filters NONE Steam 1 RUN: 7cbd88aa-7d6e-4403-ab44-dd8254ac42a4